fUST/lending_fUST_20250530
["ID","MTS","AMOUNT","RATE_DAILY","PERIOD"]
[363038691,1748557845082,-430.0,0.00019726,2]
[363038694,1748557845092,-447.92,0.00019726,2]
[363038696,1748557845101,-430.0,0.00019726,2]
[363038697,1748557845111,-221.85019815,0.00019726,2]
[363038699,1748557845120,-2374.77,0.00019726,2]
[363038701,1748557845130,-430.0,0.00019726,2]
[363038704,1748557845140,-641.37,0.00019726,2]
[363038705,1748557845149,-430.0,0.00019726,2]
[363038707,1748557845159,-430.0,0.00019726,2]
[363038710,1748557845169,-430.0,0.00019726,2]
[363038712,1748557845179,-430.0,0.00019726,2]
[363038714,1748557845189,-430.0,0.00019726,2]
[363038715,1748557845199,-2642.34,0.00019726,2]
[363038717,1748557845208,-430.0,0.00019726,2]
[363038719,1748557845217,-430.0,0.00019726,2]
[363038721,1748557845227,-676.04,0.00019726,2]
[363038723,1748557845236,-430.0,0.00019726,2]
[363038725,1748557845245,-430.0,0.00019726,2]
[363038727,1748557845255,-2184.0283893,0.000199,2]
[363038729,1748557845264,-160.0,0.00019956,2]
[363038731,1748557845274,-842.5625,0.00019956,2]
[363038733,1748557845283,-229.26895353,0.0001997,2]
[363038735,1748557845292,-314.78059479,0.0001997,2]
[363038737,1748557845302,-12660.97845086,0.0001997,2]
[363038739,1748557845311,-160.0,0.0001997,2]
[363038741,1748557845321,-160.0,0.0001997,2]
[363038743,1748557845331,-423.31762986,0.0001997,2]
[363038745,1748557845340,-160.0,0.0001997,2]
[363038747,1748557845349,-160.0,0.0001997,2]
[363038749,1748557845358,-212.70147903,0.0001997,2]
[363038751,1748557845368,-160.0,0.0001997,2]
[363038754,1748557845377,-160.0,0.0001997,2]
[363038756,1748557845387,-1202.70281398,0.00019989,2]
[363038758,1748557845396,-430.0,0.0002,2]
[363038760,1748557845405,-496.19521263,0.0002,2]
[363038762,1748557845415,-430.0,0.0002,2]
[363038764,1748557845424,-430.0,0.0002,2]
[363038766,1748557845433,-430.0,0.0002,2]
[363038768,1748557845442,-430.0,0.0002,2]
[363038770,1748557845451,-448.3893073,0.0002,2]
[363038773,1748557845461,-430.0,0.0002,2]
[363038776,1748557845471,-307.39876557,0.0002,2]
[363038779,1748557845480,-400.0,0.0002,2]
[363038781,1748557845490,-430.0,0.0002,2]
[363038783,1748557845499,-430.0,0.0002,2]
[363038785,1748557845508,-430.0,0.0002,2]
[363038787,1748557845517,-545.53499075,0.0002,2]
[363038789,1748557845527,-430.0,0.0002,2]
[363038791,1748557845537,-430.0,0.0002,2]
[363038793,1748557845545,-430.0,0.0002,2]
[363038795,1748557845556,-430.0,0.0002,2]
[363038797,1748557845566,-320.88518851,0.0002,2]
[363038799,1748557845579,-430.0,0.0002,2]
[363038801,1748557845589,-481.35175731,0.0002,2]
[363038803,1748557845598,-488.63117572,0.0002,2]
[363038805,1748557845608,-430.0,0.0002,2]
[363038807,1748557845617,-430.0,0.0002,2]
[363038809,1748557845626,-430.0,0.0002,2]
[363038811,1748557845635,-430.0,0.0002,2]
[363038813,1748557845645,-430.0,0.0002,2]
[363038815,1748557845654,-430.0,0.0002,2]
[363038817,1748557845664,-430.0,0.0002,2]
[363038819,1748557845673,-501.84,0.0002,2]
[363038821,1748557845682,-215.33330762,0.0002,2]
[363038822,1748557845691,-370.0,0.0002,2]
[363038825,1748557845700,-430.0,0.0002,2]
[363038826,1748557845710,-430.0,0.0002,2]
[363038828,1748557845720,-430.0,0.0002,2]
[363038831,1748557845729,-315.43110203,0.0002,2]
[363038832,1748557845738,-510.96119497,0.0002,2]
[363038834,1748557845748,-430.0,0.0002,2]
[363038836,1748557845757,-873.99,0.0002,2]
[363038838,1748557845768,-430.0,0.0002,2]
[363038840,1748557845778,-430.0,0.0002,2]
[363038842,1748557845787,-430.0,0.0002,2]
[363038844,1748557845797,-1069.37,0.0002,2]
[363038846,1748557845806,-584.45,0.0002,2]
[363038849,1748557845816,-430.0,0.0002,2]
[363038851,1748557845825,-688.69,0.0002,2]
[363038853,1748557845834,-260.0,0.0002,2]
[363038854,1748557845844,-503.95401713,0.0002,2]
[363038856,1748557845853,-430.0,0.0002,2]
[363038858,1748557845862,-430.0,0.0002,2]
[363038861,1748557845872,-430.0,0.0002,2]
[363038862,1748557845882,-531.57,0.0002,2]
[363038864,1748557845891,-430.0,0.0002,2]
[363038867,1748557845900,-430.0,0.0002,2]
[363038868,1748557845910,-430.0,0.0002,2]
[363038870,1748557845919,-537.88,0.0002,2]
[363038872,1748557845929,-430.0,0.0002,2]
[363038874,1748557845938,-430.0,0.0002,2]
[363038876,1748557845947,-430.0,0.0002,2]
[363038878,1748557845956,-430.0,0.0002,2]
[363038880,1748557845966,-430.0,0.0002,2]
[363038883,1748557845976,-430.0,0.0002,2]
[363038884,1748557845985,-4017.04,0.0002,2]
[363038886,1748557845995,-430.0,0.0002,2]
[363038888,1748557846004,-430.0,0.0002,2]
[363038891,1748557846014,-586.57,0.0002,2]
[363038892,1748557846023,-529.41,0.0002,2]
[363038894,1748557846032,-430.0,0.0002,2]
[363038896,1748557846042,-351.06587421,0.0002,2]
[363038898,1748557846051,-430.0,0.0002,2]
[363038900,1748557846060,-430.0,0.0002,2]
[363038902,1748557846070,-1603.04,0.0002,2]
[363038904,1748557846079,-430.0,0.0002,2]
[363038906,1748557846088,-430.0,0.0002,2]
[363038908,1748557846098,-430.0,0.0002,2]
[363038910,1748557846107,-430.0,0.0002,2]
[363038912,1748557846116,-430.0,0.0002,2]
[363038914,1748557846125,-430.0,0.0002,2]
[363038916,1748557846135,-3521.83,0.0002,2]
[363038918,1748557846144,-3127.8,0.0002,2]
[363038920,1748557846153,-430.0,0.0002,2]
[363038922,1748557846163,-1237.61,0.0002,2]
[363038924,1748557846172,-430.0,0.0002,2]
[363038926,1748557846181,-430.0,0.0002,2]
[363038928,1748557846191,-754.99,0.0002,2]
[363038930,1748557846200,-607.06,0.0002,2]
[363038932,1748557846209,-1761.4,0.0002,2]
[363038934,1748557846219,-2258.97,0.0002,2]
[363038936,1748557846228,-561.13,0.0002,2]
[363038938,1748557846237,-1364.45,0.0002,2]
[363038940,1748557846247,-732.26,0.0002,2]
[363038942,1748557846257,-430.0,0.0002,2]
[363038944,1748557846266,-877.76,0.0002,2]
[363038946,1748557846276,-667.85,0.0002,2]
[363038948,1748557846285,-1263.12,0.0002,2]
[363038950,1748557846295,-430.0,0.0002,2]
[363038952,1748557846305,-430.0,0.0002,2]
[363038954,1748557846314,-430.0,0.0002,2]
[363038956,1748557846323,-644.62,0.0002,2]
[363038958,1748557846332,-430.0,0.0002,2]
[363038960,1748557846341,-1362.54240735,0.0002,30]
[363038962,1748557846354,-430.0,0.0002,2]
[363038964,1748557846363,-1941.05,0.0002,2]
[363038966,1748557846372,-6482.37,0.0002,2]
[363038968,1748557846381,-700.29,0.0002,2]
[363038970,1748557846390,-1429.11,0.0002,2]
[363038972,1748557846399,-6798.56,0.0002,2]
[363038974,1748557846408,-3048.74,0.0002,2]
[363038976,1748557846418,-1401.49,0.0002,2]
[363038978,1748557846426,-510.63606479,0.0002,2]
[363038980,1748557846435,-430.0,0.0002,2]
[363038982,1748557846445,-430.0,0.0002,2]
[363038983,1748557846454,-194.01945955,0.0002,2]
[363038996,1748557846608,-430.0,0.00019178,2]
[363038998,1748557846618,-203.51,0.00019452,2]
[363039000,1748557846628,-1591.71054045,0.0002,2]
[363039002,1748557846636,-4137.78,0.0002,2]
[363039003,1748557846647,-430.0,0.0002,2]
[363039004,1748557846667,-461.22,0.0002,2]
[363039005,1748557846686,-430.0,0.0002,2]
[363039007,1748557846696,-430.0,0.0002,2]
[363039009,1748557846706,-430.0,0.0002,2]
[363039010,1748557846716,-430.0,0.0002,2]
[363039011,1748557846725,-2720.13,0.0002,2]
[363039012,1748557846735,-256.71,0.0002,2]
[363039014,1748557846744,-1156.66,0.0002,2]
[363039016,1748557846754,-430.0,0.0002,2]
[363039018,1748557846763,-2199.24,0.0002,2]
[363039019,1748557846772,-430.0,0.0002,2]
[363039021,1748557846782,-430.0,0.0002,2]
[363039024,1748557846791,-2655.27,0.0002,2]
[363039025,1748557846800,-644.54,0.0002,2]
[363039027,1748557846810,-430.0,0.0002,2]
[363039029,1748557846820,-430.0,0.0002,2]
[363039031,1748557846829,-447.92,0.0002,2]
[363039033,1748557846838,-430.0,0.0002,2]
[363039035,1748557846847,-2374.77,0.0002,2]
[363039037,1748557846856,-430.0,0.0002,2]
[363039039,1748557846865,-641.37,0.0002,2]
[363039040,1748557846874,-430.0,0.0002,2]
[363039041,1748557846884,-430.0,0.0002,2]
[363039042,1748557846894,-430.0,0.0002,2]
[363039043,1748557846903,-430.0,0.0002,2]
[363039044,1748557846912,-430.0,0.0002,2]
[363039045,1748557846921,-2642.34,0.0002,2]
[363039046,1748557846931,-430.0,0.0002,2]
[363039047,1748557846940,-430.0,0.0002,2]
[363039048,1748557846949,-676.04,0.0002,2]
[363039051,1748557847056,-430.0,0.0002,2]
[363039053,1748557847066,-69.14800421,0.0002,2]
[363039068,1748557847205,-360.85199579,0.0002,2]
[363039071,1748557847214,-2184.0283893,0.00020072,2]
[363039072,1748557847223,-646.054376,0.00020187,2]
[363039075,1748557847233,-2184.0283893,0.00020245,2]
[363039077,1748557847242,-430.0,0.00020273,2]
[363039079,1748557847251,-430.0,0.00020273,2]
[363039080,1748557847261,-430.0,0.00020273,2]
[363039081,1748557847270,-152.96196229,0.00020273,2]
[363039082,1748557847279,-430.0,0.00020273,2]
[363039084,1748557847288,-188.83160997,0.00020273,2]
[363039086,1748557847298,-430.0,0.00020273,2]
[363039088,1748557847307,-430.0,0.00020273,2]
[363039090,1748557847316,-430.0,0.00020273,2]
[363039092,1748557847326,-360.0,0.00020273,2]
[363039094,1748557847335,-430.0,0.00020273,2]
[363039096,1748557847344,-334.4738317,0.00020273,2]
[363039098,1748557847355,-430.0,0.00020273,2]
[363039100,1748557847364,-127.60716752,0.00020273,2]
[363039112,1748557847474,-302.39283248,0.00020273,2]
[363039114,1748557847487,-5.08890576,0.00020273,2]
[363039135,1748557847777,-430.0,0.00019178,2]
[363039136,1748557847787,-430.0,0.00019178,2]
[363039137,1748557847796,-371.7,0.00019452,2]
[363039138,1748557847805,-424.91109424,0.00020273,2]
[363039139,1748557847814,-430.0,0.00020273,2]
[363039140,1748557847823,-430.0,0.00020273,2]
[363039141,1748557847833,-430.0,0.00020273,2]
[363039142,1748557847843,-430.0,0.00020273,2]
[363039143,1748557847852,-501.84,0.00020273,2]
[363039144,1748557847861,-430.0,0.00020273,2]
[363039145,1748557847870,-430.0,0.00020273,2]
[363039146,1748557847879,-161.13175165,0.00020273,2]
[363039147,1748557847889,-430.0,0.00020273,2]
[363039148,1748557847898,-873.99,0.00020273,2]
[363039149,1748557847907,-258.54120297,0.00020273,2]
[363039150,1748557847916,-1069.37,0.00020273,2]
[363039151,1748557847926,-584.45,0.00020273,2]
[363039152,1748557847935,-430.0,0.00020273,2]
[363039153,1748557847943,-688.69,0.00020273,2]
[363039154,1748557847952,-430.0,0.00020273,2]
[363039155,1748557847961,-430.0,0.00020273,2]
[363039156,1748557847971,-473.51014504,0.00020273,2]
[363039157,1748557847980,-531.57,0.00020273,2]
[363039158,1748557847989,-430.0,0.00020273,2]
[363039159,1748557847999,-430.0,0.00020273,2]
[363039160,1748557848008,-430.0,0.00020273,2]
[363039161,1748557848017,-537.88,0.00020273,2]
[363039162,1748557848027,-430.0,0.00020273,2]
[363039163,1748557848036,-430.0,0.00020273,2]
[363039164,1748557848045,-430.0,0.00020273,2]
[363039165,1748557848055,-430.0,0.00020273,2]
[363039166,1748557848064,-4017.04,0.00020273,2]
[363039167,1748557848074,-430.0,0.00020273,2]
[363039168,1748557848083,-586.57,0.00020273,2]
[363039169,1748557848093,-430.0,0.00020273,2]
[363039170,1748557848102,-430.0,0.00020273,2]
[363039171,1748557848111,-430.0,0.00020273,2]
[363039172,1748557848120,-1603.04,0.00020273,2]
[363039173,1748557848130,-430.0,0.00020273,2]
[363039174,1748557848139,-430.0,0.00020273,2]
[363039175,1748557848148,-430.0,0.00020273,2]
[363039176,1748557848158,-430.0,0.00020273,2]
[363039177,1748557848166,-430.0,0.00020273,2]
[363039178,1748557848175,-430.0,0.00020273,2]
[363039179,1748557848185,-3521.83,0.00020273,2]
[363039180,1748557848195,-3127.8,0.00020273,2]
[363039181,1748557848204,-430.0,0.00020273,2]
[363039182,1748557848213,-1237.61,0.00020273,2]
[363039183,1748557848223,-430.0,0.00020273,2]
[363039184,1748557848232,-430.0,0.00020273,2]
[363039185,1748557848242,-754.99,0.00020273,2]
[363039186,1748557848251,-607.06,0.00020273,2]
[363039187,1748557848260,-1761.4,0.00020273,2]
[363039188,1748557848270,-2258.97,0.00020273,2]
[363039189,1748557848279,-561.13,0.00020273,2]
[363039190,1748557848289,-1364.45,0.00020273,2]
[363039191,1748557848298,-732.26,0.00020273,2]
[363039192,1748557848307,-430.0,0.00020273,2]
[363039193,1748557848317,-877.76,0.00020273,2]
[363039194,1748557848326,-667.85,0.00020273,2]
[363039195,1748557848335,-1263.12,0.00020273,2]
[363039196,1748557848345,-430.0,0.00020273,2]
[363039197,1748557848354,-430.0,0.00020273,2]
[363039198,1748557848364,-430.0,0.00020273,2]
[363039199,1748557848373,-644.62,0.00020273,2]
[363039200,1748557848382,-430.0,0.00020273,2]
[363039201,1748557848391,-1941.05,0.00020273,2]
[363039202,1748557848400,-6482.37,0.00020273,2]
[363039203,1748557848410,-700.29,0.00020273,2]
[363039204,1748557848419,-1429.11,0.00020273,2]
[363039205,1748557848429,-3742.00021866,0.00020273,2]
[363039206,1748557848441,-2658.75,0.00020273,2]
[363039207,1748557848451,-397.80978134,0.00020273,2]
[363039208,1748557848461,-1747.73373083,0.00020273,2]
[363039315,1748558721885,633.891616,0.00013699,2]
[363039317,1748558730973,150.0,0.00013876,2]
[363039318,1748558737229,-163.6002201,0.00016438,3]
[363039319,1748558737251,-1692.80372585,0.00017971,2]
[363039320,1748558798185,150.0,0.00013915,2]
[363039321,1748558798619,150.0,0.00014578,2]
[363039322,1748558799550,150.0,0.00015241,2]
[363039323,1748558799959,150.0,0.00015903,2]
[363039324,1748558805088,-150.0,0.00016566,2]
[363039325,1748558805111,-9.89997074,0.00017229,2]
[363039326,1748558827085,-152.54002926,0.00017229,2]
[363039327,1748558827106,-1123.9485084,0.00017791,2]
[363039328,1748558828081,-1636.17797016,0.00017791,2]
[363039329,1748558837100,-1456.27196981,0.00017791,2]
[363039330,1748558837132,-783.60155163,0.00017791,2]
[363039331,1748558837158,-189.51,0.00017891,2]
[363039332,1748558837181,-147.38586294,0.00018153,2]
[363039333,1748558847168,-1204.36907215,0.00017722,2]
[363039334,1748558847190,-10985.55017303,0.00017901,2]
[363039336,1748558867880,150.0,0.00013914,2]
[363039337,1748558868217,150.0,0.00014576,2]
[363039338,1748558890917,299.48602011,6.8e-07,2]
[363039340,1748558937382,150.0,0.00013907,2]
[363039341,1748558937777,150.0,0.0001457,2]
[363039342,1748558938196,150.0,0.00015232,2]
[363039343,1748558938624,150.0,0.00015894,2]
[363039344,1748558945121,-150.0,0.00016557,2]
[363039345,1748558945143,-51.25537495,0.00017219,2]
[363039346,1748558945170,-98.74462505,0.00017219,2]
[363039347,1748558953717,167.0,0.00016438,3]
[363039348,1748558956124,-300.0,0.000179,2]
[363039349,1748558956147,-13914.44982697,0.00017901,2]
[363039350,1748558956169,-24.0942247,0.00018153,2]
[363039351,1748558961188,-25.35238216,0.00018153,2]
[363039353,1748559005645,150.0,0.00013858,2]
[363039385,1748559032300,-1024.6644348,0.00018633,2]
[363039387,1748559032311,-567.983405,0.00018782,2]
[363039389,1748559032321,-300.0,0.00018899,2]
[363039390,1748559032330,-300.0,0.00018899,2]
[363039392,1748559032340,-300.0,0.00018899,2]
[363039394,1748559032349,-1200.0,0.00018899,2]
[363039396,1748559032359,-536.24242906,0.000189,2]
[363039398,1748559032369,-1285.30327755,0.00018991,2]
[363039400,1748559032378,-546.2439137,0.00019038,2]
[363039401,1748559032388,-1632.2748971,0.00019078,2]
[363039403,1748559032397,-179.93,0.00019168,3]
[363039405,1748559032406,-539.79,0.00019168,3]
[363039407,1748559032416,-223.35908659,0.00019173,2]
[363039408,1748559032425,-500.0,0.00019173,2]
[363039410,1748559032434,-500.0,0.00019173,2]
[363039412,1748559032444,-603.70077833,0.00019173,2]
[363039414,1748559032453,-500.0,0.00019173,2]
[363039416,1748559032463,-500.68641638,0.00019173,2]
[363039417,1748559032472,-502.55203898,0.00019173,2]
[363039419,1748559032482,-502.37133137,0.00019173,2]
[363039421,1748559032491,-500.0,0.00019177,2]
[363039423,1748559032500,-500.0,0.00019177,2]
[363039425,1748559032510,-587.66510009,0.00019177,2]
[363039427,1748559032520,-500.0,0.00019177,2]
[363039429,1748559032529,-500.0,0.00019177,2]
[363039432,1748559032539,-500.0,0.00019177,2]
[363039435,1748559032548,-590.79746983,0.00019177,2]
[363039438,1748559032557,-500.0,0.00019177,2]
[363039441,1748559032567,-500.0,0.00019177,2]
[363039442,1748559032577,-500.0,0.00019177,2]
[363039445,1748559032587,-500.0,0.00019177,2]
[363039448,1748559032596,-500.0,0.00019177,2]
[363039451,1748559032605,-500.0,0.00019177,2]
[363039453,1748559032614,-430.0,0.00019178,2]
[363039455,1748559032623,-430.0,0.00019178,2]
[363039456,1748559032633,-430.0,0.00019178,2]
[363039458,1748559032643,-430.0,0.00019178,2]
[363039460,1748559032652,-430.0,0.00019178,2]
[363039462,1748559032661,-430.0,0.00019178,2]
[363039464,1748559032671,-430.0,0.00019178,2]
[363039465,1748559032680,-430.0,0.00019178,2]
[363039467,1748559032691,-430.0,0.00019178,2]
[363039469,1748559032700,-430.0,0.00019178,2]
[363039471,1748559032709,-430.0,0.00019178,2]
[363039473,1748559032718,-430.0,0.00019178,2]
[363039474,1748559032727,-430.0,0.00019178,2]
[363039476,1748559032737,-430.0,0.00019178,2]
[363039478,1748559032746,-165.34009342,0.00019178,2]
[363039480,1748559032755,-261.36469065,0.00019178,2]
[363039482,1748559032764,-320.0,0.00019178,2]
[363039483,1748559032774,-370.0,0.00019178,2]
[363039485,1748559032783,-430.0,0.00019178,2]
[363039487,1748559032793,-430.0,0.00019178,2]
[363039489,1748559032803,-430.0,0.00019178,2]
[363039491,1748559032812,-430.0,0.00019178,2]
[363039493,1748559032821,-430.0,0.00019178,2]
[363039494,1748559032830,-430.0,0.00019178,2]
[363039496,1748559032839,-453.12221441,0.00019178,2]
[363039498,1748559032848,-300.0,0.00019178,2]
[363039500,1748559032857,-430.0,0.00019178,2]
[363039501,1748559032867,-430.0,0.00019178,2]
[363039502,1748559032876,-430.0,0.00019178,2]
[363039503,1748559032885,-430.0,0.00019178,2]
[363039504,1748559032894,-430.0,0.00019178,2]
[363039505,1748559032903,-430.0,0.00019178,2]
[363039506,1748559032912,-450.0,0.00019178,2]
[363039507,1748559032922,-450.0,0.00019178,2]
[363039508,1748559032931,-430.0,0.00019178,2]
[363039509,1748559032941,-435.48034986,0.00019178,2]
[363039510,1748559032950,-403.91097545,0.00019178,2]
[363039511,1748559032959,-430.0,0.00019178,2]
[363039512,1748559032969,-430.0,0.00019178,2]
[363039513,1748559032978,-430.0,0.00019178,2]
[363039514,1748559032988,-430.0,0.00019178,2]
[363039515,1748559032998,-430.0,0.00019178,2]
[363039517,1748559033010,-450.0,0.00019178,2]
[363039519,1748559033020,-430.0,0.00019178,2]
[363039520,1748559033029,-430.0,0.00019178,2]
[363039521,1748559033039,-433.6077534,0.00019178,2]
[363039522,1748559033049,-306.56813409,0.00019178,2]
[363039523,1748559033059,-430.0,0.00019178,2]
[363039524,1748559033069,-430.0,0.00019178,2]
[363039525,1748559033080,-430.0,0.00019178,2]
[363039526,1748559033090,-430.0,0.00019178,2]
[363039528,1748559033099,-354.40250561,0.00019178,2]
[363039529,1748559033108,-430.0,0.00019178,2]
[363039530,1748559033117,-430.0,0.00019178,2]
[363039531,1748559033126,-430.0,0.00019178,2]
[363039532,1748559033135,-430.0,0.00019178,2]
[363039533,1748559033145,-430.0,0.00019178,2]
[363039534,1748559033154,-421.09409967,0.00019178,2]
[363039535,1748559033163,-296.87,0.00019178,2]
[363039537,1748559033173,-401.6623163,0.00019178,2]
[363039547,1748559033306,-326.02652564,0.00019178,2]
[363039548,1748559033318,-430.0,0.00019178,2]
[363039549,1748559033327,-430.0,0.00019178,2]
[363039550,1748559033337,-430.0,0.00019178,2]
[363039551,1748559033346,-522.20678966,0.00019178,2]
[363039552,1748559033355,-430.0,0.00019178,2]
[363039553,1748559033365,-430.0,0.00019178,2]
[363039554,1748559033374,-430.0,0.00019178,2]
[363039555,1748559033383,-430.0,0.00019178,2]
[363039556,1748559033392,-430.0,0.00019178,2]
[363039557,1748559033401,-430.0,0.00019178,2]
[363039558,1748559033411,-430.0,0.00019178,2]
[363039559,1748559033420,-430.0,0.00019178,2]
[363039560,1748559033429,-320.0,0.00019178,2]
[363039561,1748559033438,-430.0,0.00019178,2]
[363039562,1748559033447,-430.0,0.00019178,2]
[363039563,1748559033456,-529.10878307,0.00019178,2]
[363039564,1748559033465,-405.68561956,0.00019178,2]
[363039565,1748559033474,-430.0,0.00019178,2]
[363039566,1748559033483,-430.0,0.00019178,2]
[363039567,1748559033492,-430.0,0.00019178,2]
[363039568,1748559033502,-402.67606541,0.00019178,2]
[363039569,1748559033511,-430.0,0.00019178,2]
[363039570,1748559033520,-430.0,0.00019178,2]
[363039571,1748559033529,-430.0,0.00019178,2]
[363039572,1748559033538,-430.0,0.00019178,2]
[363039573,1748559033547,-430.0,0.00019178,2]
[363039574,1748559033556,-430.0,0.00019178,2]
[363039575,1748559033566,-430.0,0.00019178,2]
[363039576,1748559033576,-430.0,0.00019178,2]
[363039577,1748559033585,-430.0,0.00019178,2]
[363039578,1748559033594,-430.0,0.00019178,2]
[363039579,1748559033603,-305.01551178,0.00019178,2]
[363039580,1748559033612,-430.0,0.00019178,2]
[363039581,1748559033622,-430.0,0.00019178,2]
[363039582,1748559033631,-430.0,0.00019178,2]
[363039583,1748559033640,-430.0,0.00019178,2]
[363039584,1748559033649,-430.0,0.00019178,2]
[363039585,1748559033658,-430.0,0.00019178,2]
[363039586,1748559033667,-500.0,0.00019178,2]
[363039587,1748559033676,-619.13658445,0.00019178,2]
[363039588,1748559033685,-430.0,0.00019178,2]
[363039589,1748559033695,-430.0,0.00019178,2]
[363039590,1748559033704,-450.0,0.00019178,2]
[363039591,1748559033713,-430.0,0.00019178,2]
[363039592,1748559033722,-500.0,0.00019178,2]
[363039593,1748559033731,-1131.49,0.00019178,2]
[363039594,1748559033740,-400.0,0.00019178,2]
[363039595,1748559033749,-681.15,0.00019178,2]
[363039596,1748559033758,-400.0,0.00019178,2]
[363039597,1748559033767,-430.0,0.00019178,2]
[363039598,1748559033776,-300.0,0.00019178,2]
[363039599,1748559033785,-430.0,0.00019178,2]
[363039600,1748559033794,-354.97,0.00019178,2]
[363039601,1748559033804,-400.34518435,0.00019178,2]
[363039602,1748559033813,-430.0,0.00019178,2]
[363039603,1748559033822,-402.64732013,0.00019178,2]
[363039604,1748559033832,-430.0,0.00019178,2]
[363039606,1748559033841,-853.32,0.00019178,2]
[363039607,1748559033851,-450.70483438,0.00019178,2]
[363039608,1748559033860,-431.75763091,0.00019178,2]
[363039610,1748559033869,-431.9115172,0.00019178,2]
[363039611,1748559033878,-430.0,0.00019178,2]
[363039613,1748559033888,-378.95621755,0.00019178,2]
[363039615,1748559033897,-430.0,0.00019178,2]
[363039616,1748559033906,-430.0,0.00019178,2]
[363039619,1748559033915,-430.0,0.00019178,2]
[363039621,1748559033925,-374.484381,0.00019178,2]
[363039623,1748559033934,-430.0,0.00019178,2]
[363039625,1748559033944,-430.0,0.00019178,2]
[363039627,1748559033954,-500.0,0.00019178,2]
[363039629,1748559033963,-500.0,0.00019178,2]
[363039631,1748559033973,-430.0,0.00019178,2]
[363039633,1748559033983,-450.6961855,0.00019178,2]
[363039635,1748559033993,-430.0,0.00019178,2]
[363039637,1748559034008,-430.0,0.00019178,2]
[363039639,1748559034018,-430.0,0.00019178,2]
[363039641,1748559034027,-430.0,0.00019178,2]
[363039643,1748559034036,-450.0,0.00019178,2]
[363039645,1748559034046,-458.44,0.00019178,2]
[363039647,1748559034056,-430.0,0.00019178,2]
[363039648,1748559034065,-401.17977441,0.00019178,2]
[363039650,1748559034076,-400.0,0.00019178,2]
[363039653,1748559034085,-431.44566036,0.00019178,2]
[363039655,1748559034094,-430.0,0.00019178,2]
[363039657,1748559034104,-545.88978283,0.00019178,2]
[363039659,1748559034113,-430.0,0.00019178,2]
[363039660,1748559034122,-430.0,0.00019178,2]
[363039662,1748559034131,-430.0,0.00019178,2]
[363039664,1748559034141,-430.0,0.00019178,2]
[363039666,1748559034151,-430.0,0.00019178,2]
[363039668,1748559034160,-430.0,0.00019178,2]
[363039670,1748559034169,-542.46820532,0.00019178,2]
[363039672,1748559034179,-1005.61574215,0.00019178,2]
[363039674,1748559034188,-387.39174868,0.00019178,2]